[Event "Azerbaijan Men-ch Final 2024"]
[Site "Baku"]
[Date "2024.04.23"]
[Round "1.4"]
[White "Muradli, Mahammad"]
[Black "Rasulov, Vugar"]
[Result "0-1"]
[ECO "E15"]
[WhiteElo "2555"]
[BlackElo "2551"]
[Annotator "TA"]
[PlyCount "50"]
[EventDate "2024.04.20"]
[EventType "k.o."]
[EventCountry "AZE"]
[SourceTitle "playchess.com"]
[Source "ChessBase"]
[SourceQuality "1"]
[TimeControl "900+10"]

{[%evp 19,50,6,22,0,2,4,35,15,51,57,48,37,33,11,18,15,53,16,41,0,12,-124,-102,-470,-409,-673,-670,-665,-646,-667,-672,-732,-709]} 1. d4 {[%emt 0:00:01]} Nf6 {[%emt 0:00:02]} 2. c4 {[%emt 0:00:02]} e6 {[%emt 0:00:02]} 3. Nf3 {[%emt 0:00:02]} b6 {[%emt 0:00:01]} 4. g3 {[%emt 0:00:03]} Ba6 {[%emt 0:00:01]} 5. b3 {[%emt 0:00:03]} Bb4+ {[%emt 0:00:02]} 6. Bd2 {[%emt 0:00:02]} Be7 {[%emt 0:00:02]} 7. Nc3 {[%emt 0:00:01]} d5 {[%emt 0:00:16]} 8. cxd5 {[%emt 0:00:02]} exd5 {[%emt 0:00:03]} 9. Bg2 {[%emt 0:00:03]} O-O {[%emt 0:00:06]} 10. O-O {[%emt 0:00:04]} Re8 {[%emt 0:00:41]} 11. Ne5 {[%emt 0:00:02][%cal Ob3b4]} Bb7 {[%emt 0:00:46]} 12. Rc1 {[%emt 0:00:03]} a6 {[%emt 0:00:50]} 13. Rc2 {[%emt 0:00:27] White is slightly better.} Bd6 {[%emt 0:00:24][%cal Oc7c5]} 14. Bg5 {[%emt 0:01:12] aiming for Bxf6.} Be7 {[%emt 0:00:06]} 15. Bc1 {[%emt 0:02:25]} Nbd7 {[%emt 0:00:14]} 16. Bb2 {[%emt 0:00:04]} Bd6 {[%emt 0:00:19]} 17. f4 {[%emt 0:01:27]} c5 {[%emt 0:00:51]} 18. e3 {[%emt 0:00:04]} Rc8 {[%emt 0:00:14]} 19. a3 {[%emt 0:03:39]} Rc7 {[%emt 0:00:38]} 20. dxc5 {[%emt 0:03:45]} (20. Na4 $11) 20... Bxc5 $17 {[%emt 0:00:06]} 21. Nxd5 {[%emt 0:01:00][%mdl 8192] [#] This costs White the game.} (21. Re1 $17) 21... Nxd5 {[%emt 0:02:50][%cal Bf6d5,Bd5e3,Be3d1][%mdl 32]} 22. Nxf7 {[%emt 0:01:05]} (22. Bxd5 $142 Bxd5 (22... Bxe3+ $2 23. Kh1 $19) 23. Qxd5 Nxe5 (23... Bxe3+ 24. Kh1 $16) 24. Qxd8 Rxd8 25. Rxc5 Rxc5 26. Bxe5) 22... Nxe3 $19 {[%emt 0:01:07] Black is clearly winning.} 23. Rxc5 {[%emt 0:00:20]} Nxd1 {[%emt 0:00:19] A dynamic duo of knights.} ({Weaker is} 23... Kxf7 24. Qh5+ Kg8 25. Rxc7 $11) 24. Nxd8 {[%emt 0:00:18]} Nxc5 {[%emt 0:00:24]} 25. Be5 {[%emt 0:00:35]} Bxg2 {[%emt 0:00:20] Weighted Error Value: White=0.76/Black=0.09 (flawless) .  Loses game:     	White=1     	---        Mistake:       	White=2     	---        Inaccurate:     	White=2     	Black=3      OK:         	White=3     	Black=4      Best:        	---       	Black=1} 0-1

[Event "Azerbaijan Men-ch Final 2024"]
[Site "Baku"]
[Date "2024.04.23"]
[Round "1.5"]
[White "Muradli, Mahammad"]
[Black "Rasulov, Vugar"]
[Result "0-1"]
[ECO "E16"]
[WhiteElo "2555"]
[BlackElo "2551"]
[Annotator "TA"]
[PlyCount "90"]
[EventDate "2024.04.20"]
[EventType "k.o."]
[EventCountry "AZE"]
[SourceTitle "playchess.com"]
[Source "ChessBase"]
[SourceQuality "1"]
[TimeControl "900+10"]

{[%evp 15,90,38,23,2,24,13,47,37,45,22,50,33,25,36,29,31,20,0,15,14,8,0,0,0,0,-2,0,0,0,0,14,8,88,-61,-65,-383,-393,-893,-882,-893,-883,-861,-883,-1010,-989,-1460,-1321,-1284,-689,-1202,-706,-688,-679,-668,-589,-660,-664,-741,-564,-545,-522,-611,-527,-541,-552,-1318,-822,-1101,-1164,-1351,-1335,-1224,-1223,-1212,-1191,-2565,-2352]} 1. d4 {[%emt 0:10:22]} Nf6 {[%emt 0:10:15]} 2. c4 {[%emt 0:00:08]} e6 {[%emt 0:00:09]} 3. Nf3 {[%emt 0:00:09]} Bb4+ {[%emt 0:00:09]} 4. Bd2 {[%emt 0:00:08]} Qe7 {[%emt 0:00:10]} 5. g3 {[%emt 0:00:11]} b6 {[%emt 0:00:16]} 6. Bg2 {[%emt 0:00:13]} Bb7 {[%emt 0:00:09]} 7. O-O {[%emt 0:00:17]} Bxd2 {[%emt 0:00:09]} 8. Qxd2 {[%emt 0:00:29]} O-O {[%emt 0:00:09]} 9. Qc2 {[%emt 0:00:19]} Be4 {[%emt 0:00:22]} 10. Qb3 {[%emt 0:00:13]} d5 {[%emt 0:00:34]} 11. Nbd2 {[%emt 0:00:26] White is slightly better.} dxc4 {[%emt 0:00:15]} 12. Qxc4 {[%emt 0:00:08] Nxe4 is the strong threat.} Bb7 {[%emt 0:00:28]} 13. Rfc1 {[%emt 0:00:20]} Rc8 {[%emt 0:00:10]} 14. b4 {[%emt 0:01:46]} Bd5 {[%emt 0:00:43]} 15. Qc3 {[%emt 0:01:08]} Nbd7 {[%emt 0:00:11]} 16. a3 {[%emt 0:00:33]} c5 {[%emt 0:00:25]} 17. dxc5 {[%emt 0:00:08]} bxc5 {[%emt 0:00:11]} 18. b5 {[%emt 0:00:14]} a6 {[%emt 0:00:39]} 19. a4 {[%emt 0:00:14]} h6 {[%emt 0:00:18]} 20. Nc4 {[%emt 0:00:41]} axb5 {[%emt 0:00:22]} 21. axb5 {[%emt 0:00:08]} Rab8 {[%emt 0:00:43]} 22. Rab1 {[%emt 0:00:15]} Nb6 {[%emt 0:00:38]} 23. Na5 {[%emt 0:00:21]} Qc7 {[%emt 0:00:35] [#]} (23... Be4 $11 24. Nc6 Rxc6 (24... Bxc6 25. bxc6 c4 26. Nd4 $16) 25. bxc6 Bxb1) 24. Qa1 {[%emt 0:00:15]} ({White should try} 24. Nd4 $1 $16 {[%cal Rd4c6]}) 24... Ra8 $15 {[%emt 0:00:09]} 25. Qc3 $2 {[%emt 0:00:10][%mdl 8192] [#] Now White is beyond hope.} ({White should play} 25. Ne5 $15) 25... Na4 $1 $19 {[%emt 0:00:12][%csl LRa5,LRc3]} 26. b6 $2 {[%emt 0:00:09]} (26. Qe1 Qxa5 27. Qxa5 Rxa5 28. Ne5) 26... Nxc3 {[%emt 0:00:11] Black is clearly winning.} (26... Nxb6 $2 27. Nb3 $19) 27. Rxc3 {[%emt 0:00:11]} Qe7 {[%emt 0:00:31]} 28. b7 {[%emt 0:00:08] [#]} Bxb7 $1 {[%emt 0:00:09]} 29. Rxb7 {[%emt 0:00:11]} (29. Nxb7 Nd5) 29... Qd6 {[%emt 0:00:12]} 30. Nc4 {[%emt 0:00:11]} Ra1+ {[%emt 0:00:18]} 31. Bf1 {[%emt 0:00:09]} Qa6 {[%emt 0:00:15]} 32. Rb6 {[%emt 0:00:10]} Qa4 {[%emt 0:00:11]} 33. Rb2 {[%emt 0:00:11]} Nd5 {[%emt 0:00:12]} 34. Rcc2 {[%emt 0:00:08]} Rd8 {[%emt 0:00:15]} 35. Kg2 {[%emt 0:00:12]} Nb4 {[%emt 0:00:13]} 36. Rc3 {[%emt 0:00:10]} Ra2 {[%emt 0:00:12] White must now prevent ...Rxb2.} 37. Rb1 {[%emt 0:00:10]} Rc2 {[%emt 0:00:11]} 38. Rbb3 {[%emt 0:00:10]} Qa1 {[%emt 0:00:11]} 39. Rxc2 {[%emt 0:00:09]} Nxc2 {[%emt 0:00:08]} 40. Rb7 {[%emt 0:00:11]} Ne1+ {[%emt 0:00:11]} 41. Nxe1 {[%emt 0:00:08]} Qa8 {[%emt 0:00:11]} 42. Kg1 {[%emt 0:00:12]} Qxb7 {[%emt 0:00:08]} 43. Nc2 {[%emt 0:00:10]} Rd1 {[%emt 0:00:10][%cal Od1f1] ( -> ...Rxf1+!)} 44. N2e3 {[%emt 0:00:08]} Rc1 {[%emt 0:00:08]} 45. f4 {[%emt 0:00:11]} Qb3 {[%emt 0:00:09] Weighted Error Value: White=1.21/Black=0.55.  Loses game:     	White=1     	---        Mistake:       	White=2     	Black=1      Inaccurate:     	White=2     	Black=3      OK:         	White=5     	Black=6      Best:        	---       	Black=1      Strong:       	---       	Black=1} 0-1

[Event "Azerbaijan Men-ch Final 2024"]
[Site "Baku"]
[Date "2024.04.23"]
[Round "1.6"]
[White "Rasulov, Vugar"]
[Black "Muradli, Mahammad"]
[Result "0-1"]
[ECO "B25"]
[WhiteElo "2551"]
[BlackElo "2555"]
[Annotator "TA"]
[PlyCount "138"]
[EventDate "2024.04.20"]
[EventType "k.o."]
[EventCountry "AZE"]
[SourceTitle "playchess.com"]
[Source "ChessBase"]
[SourceQuality "1"]
[TimeControl "900+10"]

{[%evp 67,138,-165,-108,-124,-123,-220,-191,-244,-236,-594,-514,-603,-568,-606,-598,-875,-615,-650,-569,-450,0,-567,-462,-12842,-12842,-12492,-9493,-5589,-730,-699,-697,-4810,-1513,-11558,-779,-5273,-713,-5106,-5106,-2322,-2245,-11802,-11314,-11510,-11900,-12838,-29937,-29981,-29982,-29984,-29979,-29984,-29984,-29984,-29979,-29979,-29980,-29980,-29981,-29980,-29981,-29981,-29982,-29982,-7308,-29984,-29979,-29981,-29979,-29978,-29973,-5685,-1875]} 1. e4 {[%emt 0:10:16]} c5 {[%emt 0:10:14]} 2. Nc3 {[%emt 0:00:09]} d6 {[%emt 0:00:09]} 3. Nge2 {[%emt 0:00:09]} Nf6 {[%emt 0:00:14]} 4. g3 {[%emt 0:00:08]} g6 {[%emt 0:00:08]} 5. Bg2 {[%emt 0:00:10]} Bg7 {[%emt 0:00:07]} 6. O-O {[%emt 0:00:13]} O-O {[%emt 0:00:08]} 7. d3 {[%emt 0:00:10]} Nc6 {[%emt 0:00:12]} 8. f4 {[%emt 0:00:13]} Rb8 {[%emt 0:00:15]} 9. h3 {[%emt 0:00:10]} Nd7 {[%emt 0:00:24]} 10. f5 {[%emt 0:00:23]} b5 {[%emt 0:00:20]} 11. g4 {[%emt 0:00:09]} Nd4 {[%emt 0:00:21]} 12. g5 {[%emt 0:00:30]} Bb7 {[%emt 0:00:53]} 13. Nf4 {[%emt 0:00:29]} b4 {[%emt 0:00:38]} 14. Ncd5 {[%emt 0:00:14]} e6 {[%emt 0:01:00]} 15. f6 {[%emt 0:00:14]} exd5 {[%emt 0:00:09]} 16. fxg7 {[%emt 0:04:13]} Re8 17. c3 {[%emt 0:00:00]} bxc3 {[%emt 0:00:19]} 18. bxc3 {[%emt 0:00:00]} Ne6 {[%emt 0:00:08]} 19. Nxd5 {[%emt 0:00:00]} Bxd5 {[%emt 0:00:09]} 20. exd5 {[%emt 0:00:00]} Nxg7 {[%emt 0:00:09]} 21. Bf4 {[%emt 0:00:00]} Ne5 {[%emt 0:00:08]} 22. d4 {[%emt 0:00:00]} cxd4 {[%emt 0:00:13]} 23. cxd4 {[%emt 0:00:00]} Nc4 {[%emt 0:00:27]} 24. Qd3 {[%emt 0:00:00]} Rb4 {[%emt 0:00:31]} 25. a3 {[%emt 0:00:00]} Ra4 {[%emt 0:00:12]} 26. Rfe1 {[%emt 0:00:00]} Nf5 {[%emt 0:00:57]} 27. Kh2 {[%emt 0:00:04]} Nb6 {[%emt 0:00:56]} 28. Be3 {[%emt 0:00:30]} Rxe3 {[%emt 0:00:15]} 29. Rxe3 {[%emt 0:00:07]} Rxd4 {[%emt 0:00:09]} 30. Qc3 {[%emt 0:00:23]} Na4 {[%emt 0:00:18]} 31. Qe1 {[%emt 0:00:17]} Qxg5 {[%emt 0:00:08]} 32. Re4 {[%emt 0:00:31]} Rxe4 {[%emt 0:00:14]} 33. Qxe4 {[%emt 0:00:09]} Nc5 {[%emt 0:00:08]} 34. Qg4 {[%emt 0:00:28]} Qe3 {[%emt 0:00:08]} (34... Qd2 $19 {White must now prevent ...Ne3.} 35. Rd1 Qe3) 35. Rf1 $17 {[%emt 0:00:19]} h5 {[%emt 0:00:09]} 36. Qf4 {[%emt 0:00:09]} (36. Qf3 $17) 36... Qxa3 $19 {[%emt 0:00:08]} 37. Qg5 {[%emt 0:00:15]} (37. Qd2 $142) 37... Qd3 $19 {[%emt 0:00:12]} 38. Rxf5 $2 {[%emt 0:00:10]} (38. Rf2 {is a better chance.}) 38... Qxf5 $19 {[%emt 0:00:09]} 39. Qd8+ {[%emt 0:00:07]} Kg7 {[%emt 0:00:10]} 40. Qxd6 {[%emt 0:00:08]} Nd3 {[%emt 0:00:09]} 41. Kh1 {[%emt 0:00:24]} Qe5 {[%emt 0:00:13]} 42. Qa3 {[%emt 0:00:09]} Qe1+ {[%emt 0:00:12]} 43. Kh2 {[%emt 0:00:08]} Qe5+ {[%emt 0:00:09]} 44. Kh1 {[%emt 0:00:08]} Nf4 {[%emt 0:00:14]} 45. d6 {[%emt 0:00:15]} (45. Qxa7 $142 Qe1+ (45... Nxd5 46. Qa5 $14) (45... Nxg2 $2 46. Kxg2 Qxd5+ 47. Kh2 $19) 46. Kh2) 45... Qe1+ $19 {[%emt 0:00:09]} 46. Kh2 {[%emt 0:00:07]} Qd2 {[%emt 0:00:09]} 47. Qf3 {[%emt 0:00:17]} Qxd6 {[%emt 0:00:09]} (47... a5 $142 48. d7 Nxg2 49. Qxg2 Qxd7 50. Qb2+ Kh7) 48. Bf1 $19 {[%emt 0:00:08]} Qe5 {[%emt 0:00:09]} 49. Qa3 {[%emt 0:00:10]} a5 {[%emt 0:00:09]} 50. Kh1 {[%emt 0:00:09]} Ne6 {[%emt 0:00:12]} 51. Bg2 {[%emt 0:00:11]} Nd4 {[%emt 0:00:12]} 52. Qb2 {[%emt 0:00:10]} Qe1+ {[%emt 0:00:10]} 53. Kh2 {[%emt 0:00:08]} Qb4 {[%emt 0:00:08]} 54. Qf2 {[%emt 0:00:10]} Qd6+ {[%emt 0:00:10]} 55. Kh1 {[%emt 0:00:08]} a4 {[%emt 0:00:08]} 56. Qa2 {[%emt 0:00:11]} a3 {[%emt 0:00:09]} 57. Qc4 {[%emt 0:00:09]} Nf5 {[%emt 0:00:12]} 58. Qc3+ {[%emt 0:00:08]} Kg8 {[%emt 0:00:09]} 59. Qc8+ {[%emt 0:00:09]} Kh7 {[%emt 0:00:09]} 60. Qc4 {[%emt 0:00:08]} Qe7 {[%emt 0:00:14]} 61. Qa2 {[%emt 0:00:16]} Kg8 {[%emt 0:00:11]} 62. Bd5 {[%emt 0:00:12]} Qe1+ {[%emt 0:00:09]} 63. Kh2 {[%emt 0:00:12]} Qg3+ {[%emt 0:00:08]} 64. Kh1 {[%emt 0:00:07]} Qxh3+ {[%emt 0:00:08]} 65. Kg1 {[%emt 0:00:08]} Qe3+ {[%emt 0:00:09]} (65... Ne3 $142 66. Bxf7+ Kg7 67. Be6 Qg3+ 68. Kh1 Qe1+ 69. Kh2 g5 70. Bh3 g4 71. Bxg4 Nf1+ (71... Nxg4+ {is a self mate.} 72. Kh3 Qe3+ 73. Kg2 Qe5 74. Kf3 Qb2 75. Qe6 Qf6+ 76. Qxf6+ Kxf6 77. Ke2 a2 78. Kd3 a1=Q 79. Kc4 Ne5+ 80. Kb5 Qb2+ 81. Kc5 h4 82. Kd6 Qc1 83. Kd5 Qc4+ 84. Kd6 Qc6#) 72. Kh1 hxg4 (72... Ne3+ 73. Kh2 Nf1+ 74. Kh1 hxg4 75. Qf2 Ng3+ 76. Kg2 Qxf2+ 77. Kxf2 Nh5 78. Kf1 a2 79. Ke2 a1=Q 80. Kd3 g3 81. Ke4 g2 82. Kd5 g1=Q 83. Kd6 Qb6+ 84. Kd7 Nf6+ 85. Ke7 Qe5#) 73. Qf2 Ng3+ 74. Kg2 Qxf2+ 75. Kxf2 Nf5 (75... a2 {leads to mate.} 76. Ke3 a1=Q 77. Kd3 Qc1 78. Kd4 Qc2 79. Ke5 Qd3 80. Ke6 Nf5 81. Ke5 Kg6 82. Kf4 Qd4#) 76. Ke1 a2 77. Ke2 a1=Q (77... a1=B {gets mated.} 78. Kf1 g3 79. Kg2 Kf6 80. Kf1 Kg5 81. Kg2 Kf4 82. Kh1 Nh4 83. Kg1 Kf3 84. Kf1 g2+ 85. Ke1 Ke3 86. Kd1 Kd3 87. Ke1 g1=Q#) 78. Kd3 Qd4+ 79. Kc2 g3 80. Kb3 g2 81. Kc2 g1=Q (81... g1=B 82. Kb3 Qd3+ 83. Kb4 Nd6 84. Ka4 Bc5 85. Ka5 Qb5#) 82. Kb3 Qgd1+ 83. Ka3 Q1a4#) 66. Kh2 {[%emt 0:00:09]} Qe5+ {[%emt 0:00:10]} 67. Kg1 {[%emt 0:00:08]} Qd4+ {[%emt 0:00:10]} 68. Kh1 {[%emt 0:00:11]} Nd6 {[%emt 0:00:11]} 69. Qb3 {[%emt 0:00:14]} Qa1+ {[%emt 0:00:10]} 0-1

[Event "Azerbaijan Men-ch Final 2024"]
[Site "Baku"]
[Date "2024.04.23"]
[Round "1.7"]
[White "Muradli, Mahammad"]
[Black "Rasulov, Vugar"]
[Result "1-0"]
[ECO "A30"]
[WhiteElo "2555"]
[BlackElo "2551"]
[Annotator "TA"]
[PlyCount "69"]
[EventDate "2024.04.20"]
[EventType "k.o."]
[EventCountry "AZE"]
[SourceTitle "playchess.com"]
[Source "ChessBase"]
[SourceQuality "1"]
[TimeControl "900+10"]

{[%evp 14,69,37,17,66,66,71,68,93,64,134,29,218,73,87,35,67,44,151,43,77,33,86,30,90,95,92,78,96,29,37,0,0,-8,-14,-33,94,104,419,406,396,379,686,634,1810,1806,3017,2833,2863,2405,2232,2229,2284,2300,29988,29969,29992,29977]} 1. Nf3 {[%emt 0:10:21]} Nf6 {[%emt 0:11:20]} 2. c4 {[%emt 0:00:10]} b6 {[%emt 0:00:12]} 3. g3 {[%emt 0:00:11]} Bb7 {[%emt 0:00:12]} 4. Bg2 {[%emt 0:00:11]} c5 {[%emt 0:00:11]} 5. O-O {[%emt 0:00:13]} g6 {[%emt 0:00:13]} 6. Nc3 {[%emt 0:00:15]} Bg7 {[%emt 0:00:11]} 7. Re1 {[%emt 0:00:19]} d6 {[%emt 0:00:14]} 8. e4 {[%emt 0:00:20]} Nbd7 {[%emt 0:00:16]} (8... Nc6 $11) 9. d4 $14 {[%emt 0:00:11]} cxd4 {[%emt 0:00:11]} 10. Nxd4 {[%emt 0:00:11][%cal Oe4e5]} O-O {[%emt 0:00:34][%cal Of6g4] White is slightly better.} 11. b3 {[%emt 0:00:19] White is more active.} a6 {[%emt 0:00:16]} (11... Nc5 $14) 12. Bb2 {[%emt 0:00:17]} (12. e5 $1 $16 {[%cal Re5f6]} dxe5 13. Bxb7 exd4 14. Bxa8 (14. Qxd4 Nc5 $17)) 12... Ne5 {[%emt 0:00:19] [#]} (12... e6 $11) 13. Qe2 {[%emt 0:00:16]} (13. f4 $1 $18 {is the precise move to win.}) 13... e6 {[%emt 0:00:20]} 14. h3 {[%emt 0:00:12]} (14. f4 $16) 14... Qe7 {[%emt 0:00:12]} 15. Rad1 {[%emt 0:00:12] Hoping for f4.} Rac8 {[%emt 0:00:12]} (15... Qc7 $14) 16. Nc2 {[%emt 0:00:17]} (16. f4 $16) 16... Rfd8 {[%emt 0:00:12]} 17. Rd2 {[%emt 0:00:15]} h5 {[%emt 0:00:11]} (17... Ned7 $14) 18. Red1 {[%emt 0:00:13]} ({Better is} 18. f4 $16) 18... h4 {[%emt 0:00:12]} 19. f4 $16 {[%emt 0:00:17]} (19. gxh4 Bh6 $15 (19... Nh5 20. Qe3 $11)) 19... Nc6 {[%emt 0:00:14]} 20. g4 {[%emt 0:00:12]} (20. gxh4 Nh5 $11) 20... g5 {[%emt 0:00:18]} 21. fxg5 {[%emt 0:00:49]} (21. e5 $16 dxe5 22. Ba3 (22. fxe5 Nd7 $16) (22. fxg5 Nh7 $14)) 21... Nh7 $11 {[%emt 0:00:11]} 22. Qf2 {[%emt 0:00:10]} b5 $1 {[%emt 0:00:19]} 23. cxb5 {[%emt 0:00:21]} axb5 {[%emt 0:00:10]} 24. Ne3 {[%emt 0:00:19]} b4 {[%emt 0:00:20] [#]} (24... Qxg5 $15 {keeps the upper hand.} 25. Rxd6 Bd4 26. R6xd4 Rxd4 (26... Nxd4 27. Ncd5 $14) 27. Rxd4 Nxd4) 25. Ncd5 $1 $36 {[%emt 0:00:21][%mdl 2048] Black is under strong pressure.} exd5 {[%emt 0:00:12][%mdl 8192]} (25... Qxg5 $16 26. Bxg7 Kxg7) 26. Bxg7 $18 {[%emt 0:00:11] Threatens to win with Bf6.} (26. Nf5 Qxg5 27. Bxg7 (27. Nxg7 d4 $18) 27... Ne5) 26... Qxg5 {[%emt 0:00:19]} 27. Nf5 {[%emt 0:00:17]} (27. Rxd5 Qxg7 28. Nf5 Qf8 29. Qxh4 (29. Nxh4 Ne5 $17) (29. Nxd6 Rb8 $15) 29... Ne5 30. Nh6+ Kg7 (30... Kh8 $2 31. Rxe5 dxe5 32. Rxd8 $18) 31. Nf5+ Kh8 $17) 27... dxe4 {[%emt 0:00:25]} (27... Ne5 28. Qb6 (28. exd5 Rc3 $18) (28. Bh6 Qf6 $18) 28... Rd7 29. exd5 (29. Qxb4 Re8 $18) 29... Qg6 30. Bxe5 (30. Nxh4 Qxg7 31. Nf5 Qg5 $17) (30. Qxb4 Re8 $18) 30... dxe5 31. Qxb4 Qf6) 28. Bh6 {[%emt 0:00:10] A strong pair of Bishops.} Qg6 {[%emt 0:00:13]} 29. Rxd6 {[%emt 0:00:11]} Rxd6 {[%emt 0:00:19]} 30. Rxd6 {[%emt 0:00:11]} f6 {[%emt 0:00:22] [#]} 31. Rxc6 $1 {[%emt 0:00:11][%mdl 512]} Qe8 {[%emt 0:00:24]} (31... Qf7 32. Rd6) 32. Rxc8 {[%emt 0:00:14]} Bxc8 {[%emt 0:00:11]} 33. Nd6 {[%emt 0:00:15]} Qe6 {[%emt 0:00:11]} 34. Nxc8 {[%emt 0:00:12]} Qxc8 {[%emt 0:00:11]} 35. Bxe4 {[%emt 0:00:11] Weighted Error Value: White=0.35/Black=1.01.  Loses game:     	---       	Black=2      Mistake:       	White=6     	Black=6      Inaccurate:     	White=3     	Black=3      OK:         	White=4     	Black=4      Best:        	White=1     	---        Strong:       	White=1     	Black=1} 1-0

[Event "Azerbaijan Men-ch Final 2024"]
[Site "Baku"]
[Date "2024.04.24"]
[Round "2.1"]
[White "Muradli, Mahammad"]
[Black "Suleymanli, Aydin"]
[Result "1/2-1/2"]
[ECO "D50"]
[WhiteElo "2555"]
[BlackElo "2607"]
[Annotator "TA"]
[PlyCount "127"]
[EventDate "2024.04.20"]
[EventType "k.o."]
[EventCountry "AZE"]
[SourceTitle "playchess.com"]
[Source "ChessBase"]
[SourceQuality "1"]
[TimeControl "5400+30"]

{[%evp 49,127,-14,0,0,-8,-4,0,-8,-10,-9,0,0,3,0,0,0,0,0,0,0,0,0,0,0,0,0,0,0,0,0,0,0,0,0,0,0,0,0,0,0,0,0,0,0,0,0,0,0,0,0,0,0,0,0,0,0,0,0,0,0,0,0,0,0,0,0,0,0,0,0,0,0,0,0,0,0,0,0,0,0]} 1. d4 {[%emt 0:04:36]} Nf6 {[%emt 0:00:03]} 2. c4 {[%emt 0:00:07]} e6 {[%emt 0:00:02]} 3. Nf3 {[%emt 0:00:10]} d5 {[%emt 0:00:06]} 4. Nc3 {[%emt 0:00:06]} c5 {[%emt 0:00:09]} 5. cxd5 {[%emt 0:00:14]} cxd4 {[%emt 0:00:09]} 6. Qxd4 {[%emt 0:00:08]} exd5 {[%emt 0:00:12]} 7. Bg5 {[%emt 0:00:09]} Be7 {[%emt 0:00:08]} 8. e3 {[%emt 0:00:12]} O-O {[%emt 0:00:09] D50: Queen's Gambit Declined: Dutch-Peruvian Gambit.} 9. Bd3 {[%emt 0:00:16]} Nc6 {[%emt 0:01:28]} 10. Qa4 {[%emt 0:02:27]} h6 {[%emt 0:02:01]} 11. Bh4 {[%emt 0:00:49]} Bd7 {[%emt 0:00:47]} 12. Rd1 $146 {[%emt 0:00:08]} ({Predecessor:} 12. Qd1 Bg4 13. h3 Bxf3 14. Qxf3 d4 15. Bxf6 Bxf6 16. Nd5 Bg5 17. e4 Qa5+ 18. Kf1 {½-½ Duda,J (2738)-Grischuk,A (2778) FIDE World Cup 2021 (5.2)}) 12... Ne5 {[%emt 0:06:44]} 13. Qd4 {[%emt 0:00:15]} Nc6 {[%emt 0:04:34]} 14. Qa4 {[%emt 0:00:12]} Ne5 {[%emt 0:00:05]} 15. Qf4 {[%emt 0:00:05]} Nxd3+ {[%emt 0:01:09]} 16. Rxd3 {[%emt 0:00:14]} Rc8 {[%emt 0:01:22]} 17. O-O {[%emt 0:00:24]} Rc4 {[%emt 0:01:34]} 18. Qe5 {[%emt 0:01:05]} Be6 {[%emt 0:00:21]} 19. Nxd5 {[%emt 0:00:25]} Bxd5 {[%emt 0:00:41]} 20. Bxf6 {[%emt 0:00:11]} Bxf6 {[%emt 0:00:03]} 21. Qxd5 {[%emt 0:00:10]} Qxd5 {[%emt 0:00:04]} 22. Rxd5 {[%emt 0:00:07]} Ra4 {[%emt 0:00:45]} 23. Rb5 {[%emt 0:05:37]} Rxa2 {[%emt 0:00:16]} 24. Rxb7 {[%emt 0:00:04]} Bxb2 {[%emt 0:00:04]} 25. h4 {[%emt 0:04:04]} Ra8 {[%emt 0:24:37]} 26. g4 {[%emt 0:13:38]} a5 {[%emt 0:04:58]} 27. Rb1 {[%emt 0:01:45]} Bc3 {[%emt 0:01:39]} 28. R1b3 {[%emt 0:04:39]} Bb4 {[%emt 0:07:09]} 29. Rd3 {[%emt 0:13:05]} Rb2 {[%emt 0:01:40]} 30. Rdd7 {[%emt 0:05:37]} a4 {[%emt 0:09:39]} 31. Rxf7 {[%emt 0:04:50]} Bc3 {[%emt 0:02:14]} 32. Ra7 {[%emt 0:00:56]} Rbb8 {[%emt 0:01:34]} 33. Rfc7 {[%emt 0:11:16]} a3 {[%emt 0:02:26]} 34. Rxa8 {[%emt 0:00:55]} Rxa8 {[%emt 0:00:05]} 35. Rxc3 {[%emt 0:00:05]} a2 {[%emt 0:00:01]} 36. Rc1 {[%emt 0:00:07]} a1=Q {[%emt 0:00:17]} 37. Rxa1 {[%emt 0:00:04]} Rxa1+ {[%emt 0:00:05]} 38. Kg2 {[%emt 0:00:05]} Kf7 {[%emt 0:03:18]} 39. h5 {[%emt 0:09:55]} Kf6 {[%emt 0:00:24]} 40. Kg3 {[%emt 0:00:00]} Ra4 {[%emt 0:00:00]} 41. Nh4 {[%emt 0:00:00]} Ke5 {[%emt 0:00:00]} 42. f3 {[%emt 0:00:00]} Ra7 {[%emt 0:00:00]} 43. Ng6+ {[%emt 0:00:00]} Kd5 {[%emt 0:00:00]} 44. Nh4 {[%emt 0:00:00]} Ke5 {[%emt 0:00:00]} 45. e4 {[%emt 0:00:00]} Rb7 {[%emt 0:00:00]} 46. Ng2 {[%emt 0:05:06]} Rb3 {[%emt 0:00:00]} 47. Nf4 {[%emt 0:00:27]} Rb7 {[%emt 0:00:00]} 48. Nh3 {[%emt 0:02:17]} Rb1 {[%emt 0:00:00]} 49. Nf4 {[%emt 0:02:09]} Rb7 {[%emt 0:00:00]} 50. Ng6+ {[%emt 0:03:30]} Kd4 {[%emt 0:00:00]} 51. Kf4 {[%emt 0:00:20]} Rf7+ {[%emt 0:00:00]} 52. Kg3 {[%emt 0:00:04]} Rb7 {[%emt 0:00:00]} 53. e5 {[%emt 0:03:01]} Kd5 {[%emt 0:00:00]} 54. f4 $1 {[%emt 0:00:09]} Rb3+ {[%emt 0:00:00]} 55. Kh4 {[%emt 0:00:23]} Ke6 {[%emt 0:00:00]} 56. f5+ {[%emt 0:00:57]} Kf7 {[%emt 0:03:27]} 57. Nf4 $1 {[%emt 0:00:49]} Rf3 {[%emt 0:01:19]} 58. Nd5 {[%emt 0:03:02]} Rd3 {[%emt 0:00:22]} 59. e6+ {[%emt 0:00:18]} Kf8 {[%emt 0:01:32]} 60. Nf4 {[%emt 0:00:10]} Rf3 {[%emt 0:00:11]} 61. Ng6+ {[%emt 0:01:04]} Ke8 {[%emt 0:00:01]} 62. Ne5 {[%emt 0:00:47]} Re3 {[%emt 0:00:17]} 63. Ng6 {[%emt 0:02:39]} Rf3 {[%emt 0:00:27]} 64. Ne5 {[%emt 0:00:07]} 1/2-1/2